[Event "*** Titled Tuesday Blitz"]
[Site "Chess.com"]
[Date "2020.11.24"]
[Round "5"]
[White "PIwan"]
[Black "Alexander_Kachko"]
[Result "0-1"]
[WhiteElo "2555"]
[BlackElo "2783"]
[TimeControl "180+1"]
[EndTime "11:11:22 PST"]
[Termination "Alexander_Kachko won on time"]

1. c4 {[%clk 0:03:00.9]} 1... Nc6 {[%clk 0:02:59.7]} 2. Nc3 {[%clk 0:03:00.6]}
2... e5 {[%clk 0:02:59.5]} 3. Nf3 {[%clk 0:03:00.5]} 3... f5 {[%clk 0:02:58.5]}
4. d4 {[%clk 0:03:01.1]} 4... e4 {[%clk 0:02:58.6]} 5. Ng5 {[%clk 0:03:01.8]}
5... Nf6 {[%clk 0:02:55.7]} 6. Nh3 {[%clk 0:03:01.5]} 6... d6 {[%clk 0:02:50.8]}
7. Nf4 {[%clk 0:02:58.8]} 7... g6 {[%clk 0:02:50.3]} 8. h4 {[%clk 0:02:57.7]}
8... Ne7 {[%clk 0:02:42.5]} 9. e3 {[%clk 0:02:54.6]} 9... h6 {[%clk 0:02:39.4]}
10. b3 {[%clk 0:02:40.8]} 10... Bg7 {[%clk 0:02:38.9]} 11. Bb2 {[%clk
0:02:40.5]} 11... c6 {[%clk 0:02:37.7]} 12. Qd2 {[%clk 0:02:22.5]} 12... O-O
{[%clk 0:02:36.7]} 13. d5 {[%clk 0:02:19.6]} 13... cxd5 {[%clk 0:02:31.5]} 14.
cxd5 {[%clk 0:02:13.3]} 14... a6 {[%clk 0:02:23]} 15. a4 {[%clk 0:02:10.3]}
15... Kh7 {[%clk 0:02:19.9]} 16. Bc4 {[%clk 0:02:05.7]} 16... Ng4 {[%clk
0:02:15.9]} 17. Rd1 {[%clk 0:01:36.4]} 17... Ne5 {[%clk 0:02:14]} 18. Be2 {[%clk
0:01:32.1]} 18... Rf6 {[%clk 0:02:08.5]} 19. Kf1 {[%clk 0:01:24.4]} 19... Bd7
{[%clk 0:01:58.7]} 20. g3 {[%clk 0:01:19.2]} 20... Qe8 {[%clk 0:01:51.7]} 21.
Kg2 {[%clk 0:01:14.6]} 21... Qf7 {[%clk 0:01:49.1]} 22. Nh3 {[%clk 0:01:07.7]}
22... Kg8 {[%clk 0:01:44.2]} 23. Ng5 {[%clk 0:01:07]} 23... Qe8 {[%clk
0:01:43.8]} 24. Ne6 {[%clk 0:01:02.8]} 24... Bxe6 {[%clk 0:01:37.1]} 25. dxe6
{[%clk 0:01:03.7]} 25... Rxe6 {[%clk 0:01:36.9]} 26. Nd5 {[%clk 0:00:56]} 26...
Rc8 {[%clk 0:01:36]} 27. Nb6 {[%clk 0:00:31.5]} 27... Rd8 {[%clk 0:01:28.6]} 28.
h5 {[%clk 0:00:20.2]} 28... g5 {[%clk 0:01:27.1]} 29. Nd5 {[%clk 0:00:20.1]}
29... Rd7 {[%clk 0:01:12.6]} 30. Rc1 {[%clk 0:00:17.9]} 30... N7c6 {[%clk
0:01:08.1]} 31. Rhd1 {[%clk 0:00:15.8]} 31... Nf3 {[%clk 0:01:00.7]} 32. Bxf3
{[%clk 0:00:14.8]} 32... exf3+ {[%clk 0:01:00]} 33. Kg1 {[%clk 0:00:13.8]} 33...
Qxh5 {[%clk 0:00:53.2]} 34. Bxg7 {[%clk 0:00:01.5]} 34... Qh3 {[%clk 0:00:51.6]}
0-1

[Event "*** Titled Tuesday Blitz"]
[Site "Chess.com"]
[Date "2020.11.24"]
[Round "5"]
[White "esrosenberg"]
[Black "yourstrulyme"]
[Result "0-1"]
[WhiteElo "2157"]
[BlackElo "2476"]
[TimeControl "180+1"]
[EndTime "11:11:23 PST"]
[Termination "yourstrulyme won on time"]

1. Nf3 {[%clk 0:03:00.9]} 1... Nf6 {[%clk 0:02:59.8]} 2. c4 {[%clk 0:03:01.1]}
2... e6 {[%clk 0:03:00.1]} 3. Nc3 {[%clk 0:03:01.3]} 3... d5 {[%clk 0:03:00.6]}
4. d4 {[%clk 0:03:01.6]} 4... Be7 {[%clk 0:03:00.6]} 5. Bg5 {[%clk 0:03:01.6]}
5... h6 {[%clk 0:03:00.1]} 6. Bf4 {[%clk 0:03:01.5]} 6... O-O {[%clk 0:02:58.1]}
7. e3 {[%clk 0:03:01.6]} 7... Ne4 {[%clk 0:02:58.7]} 8. Nxe4 {[%clk 0:02:59.6]}
8... dxe4 {[%clk 0:02:58.3]} 9. Nd2 {[%clk 0:03:00.3]} 9... f5 {[%clk
0:02:24.7]} 10. a3 {[%clk 0:02:51.7]} 10... Nd7 {[%clk 0:02:23.9]} 11. Be2
{[%clk 0:02:34.6]} 11... b6 {[%clk 0:02:23.5]} 12. O-O {[%clk 0:02:30.3]} 12...
g5 {[%clk 0:02:16.7]} 13. Be5 {[%clk 0:02:13]} 13... Nxe5 {[%clk 0:02:14.4]} 14.
dxe5 {[%clk 0:02:13.9]} 14... Bb7 {[%clk 0:02:14.3]} 15. Qc2 {[%clk 0:02:08.2]}
15... c5 {[%clk 0:02:13.4]} 16. Rad1 {[%clk 0:02:07.5]} 16... Qc7 {[%clk
0:02:13.4]} 17. f4 {[%clk 0:01:55.7]} 17... exf3 {[%clk 0:02:05.1]} 18. Bxf3
{[%clk 0:01:41.6]} 18... Bxf3 {[%clk 0:02:01.7]} 19. Nxf3 {[%clk 0:01:42.5]}
19... Rad8 {[%clk 0:02:00.4]} 20. Rxd8 {[%clk 0:01:32.7]} 20... Rxd8 {[%clk
0:01:59.3]} 21. e4 {[%clk 0:01:31.3]} 21... g4 {[%clk 0:01:38]} 22. exf5 {[%clk
0:01:15.1]} 22... gxf3 {[%clk 0:01:37.2]} 23. f6 {[%clk 0:01:15.6]} 23... Bf8
{[%clk 0:01:20.5]} 24. Qg6+ {[%clk 0:01:03.5]} 24... Kh8 {[%clk 0:01:20.5]} 25.
f7 {[%clk 0:00:40.4]} 25... Bg7 {[%clk 0:01:12.5]} 26. Rxf3 {[%clk 0:00:20.5]}
26... Qxe5 {[%clk 0:01:11.7]} 27. Rf1 {[%clk 0:00:06.4]} 27... Qe3+ {[%clk
0:00:54.2]} 28. Kh1 {[%clk 0:00:06.3]} 28... Qf2 {[%clk 0:00:45.9]} 29. Qb1
{[%clk 0:00:03.8]} 29... Qe2 {[%clk 0:00:41.8]} 30. h3 {[%clk 0:00:02.4]} 30...
Qxc4 {[%clk 0:00:34.2]} 0-1

[Event "*** Titled Tuesday Blitz"]
[Site "Chess.com"]
[Date "2020.11.24"]
[Round "5"]
[White "InitiatingASC"]
[Black "alexrustemov"]
[Result "1/2-1/2"]
[WhiteElo "2448"]
[BlackElo "2647"]
[TimeControl "180+1"]
[EndTime "11:11:24 PST"]
[Termination "Game drawn by repetition"]

1. Nf3 {[%clk 0:03:00.9]} 1... d5 {[%clk 0:02:57.6]} 2. g3 {[%clk 0:03:00.7]}
2... Nf6 {[%clk 0:02:57.2]} 3. Bg2 {[%clk 0:03:00.5]} 3... c6 {[%clk 0:02:57.9]}
4. O-O {[%clk 0:03:01.1]} 4... Bf5 {[%clk 0:02:58.2]} 5. d3 {[%clk 0:03:01.1]}
5... e6 {[%clk 0:02:58.8]} 6. Nbd2 {[%clk 0:03:01.3]} 6... h6 {[%clk 0:02:58.6]}
7. a3 {[%clk 0:02:58]} 7... Be7 {[%clk 0:02:53.3]} 8. b4 {[%clk 0:02:57.7]} 8...
a5 {[%clk 0:02:51.3]} 9. Rb1 {[%clk 0:02:55.2]} 9... axb4 {[%clk 0:02:47]} 10.
axb4 {[%clk 0:02:55.3]} 10... O-O {[%clk 0:02:44.2]} 11. Bb2 {[%clk 0:02:54.4]}
11... Nbd7 {[%clk 0:02:29.1]} 12. Re1 {[%clk 0:02:46.1]} 12... Bh7 {[%clk
0:02:20.4]} 13. e4 {[%clk 0:02:40.3]} 13... Ra4 {[%clk 0:02:11.2]} 14. c3 {[%clk
0:02:22.8]} 14... b5 {[%clk 0:01:58.5]} 15. Ra1 {[%clk 0:02:12.7]} 15... Nb6
{[%clk 0:01:50.9]} 16. Nd4 {[%clk 0:02:01.4]} 16... Qc7 {[%clk 0:01:46]} 17. Qe2
{[%clk 0:01:52.9]} 17... dxe4 {[%clk 0:01:41.5]} 18. Nxe4 {[%clk 0:01:48.7]}
18... Rxa1 {[%clk 0:01:38]} 19. Rxa1 {[%clk 0:01:46.8]} 19... Nxe4 {[%clk
0:01:30.7]} 20. Bxe4 {[%clk 0:01:46.5]} 20... Bxe4 {[%clk 0:01:20.2]} 21. Qxe4
{[%clk 0:01:47.4]} 21... Nd5 {[%clk 0:01:20.2]} 22. Ra6 {[%clk 0:01:38.1]} 22...
Bf6 {[%clk 0:00:43.8]} 23. Rxc6 {[%clk 0:01:29.2]} 23... Qa7 {[%clk 0:00:41.8]}
24. Kg2 {[%clk 0:00:54.4]} 24... Bxd4 {[%clk 0:00:40.2]} 25. Qxd4 {[%clk
0:00:34.3]} 25... Qxd4 {[%clk 0:00:39.8]} 26. cxd4 {[%clk 0:00:34.7]} 26... Rb8
{[%clk 0:00:32.8]} 27. Bc3 {[%clk 0:00:32.2]} 27... Kf8 {[%clk 0:00:25.9]} 28.
Bd2 {[%clk 0:00:32.1]} 28... Ke7 {[%clk 0:00:25.1]} 29. Rc5 {[%clk 0:00:32.5]}
29... Kd7 {[%clk 0:00:23.4]} 30. Kf3 {[%clk 0:00:28.5]} 30... h5 {[%clk
0:00:23.4]} 31. Bf4 {[%clk 0:00:28.5]} 31... Rb7 {[%clk 0:00:23]} 32. Bd2 {[%clk
0:00:27.6]} 32... g6 {[%clk 0:00:22.8]} 33. h3 {[%clk 0:00:27.7]} 33... Kd6
{[%clk 0:00:21.3]} 34. Bf4+ {[%clk 0:00:25.9]} 34... Kd7 {[%clk 0:00:19.9]} 35.
Bd2 {[%clk 0:00:26.2]} 35... Ke7 {[%clk 0:00:19.8]} 36. Bg5+ {[%clk 0:00:25.7]}
36... Kd7 {[%clk 0:00:20.1]} 37. Bd2 {[%clk 0:00:26.3]} 1/2-1/2

[Event "*** Titled Tuesday Blitz"]
[Site "Chess.com"]
[Date "2020.11.24"]
[Round "5"]
[White "Nachsueb"]
[Black "Chessdude1987"]
[Result "0-1"]
[WhiteElo "2166"]
[BlackElo "2358"]
[TimeControl "180+1"]
[EndTime "11:11:27 PST"]
[Termination "Chessdude1987 won by resignation"]

1. c4 {[%clk 0:03:00.9]} 1... Nf6 {[%clk 0:02:59.2]} 2. Nc3 {[%clk 0:03:01.2]}
2... d5 {[%clk 0:02:50.4]} 3. cxd5 {[%clk 0:03:00.1]} 3... Nxd5 {[%clk
0:02:50.2]} 4. g3 {[%clk 0:02:58.5]} 4... g6 {[%clk 0:02:47.1]} 5. Bg2 {[%clk
0:02:58.8]} 5... Nxc3 {[%clk 0:02:46.3]} 6. bxc3 {[%clk 0:02:59.7]} 6... Bg7
{[%clk 0:02:45.9]} 7. Nf3 {[%clk 0:02:55.5]} 7... O-O {[%clk 0:02:42.1]} 8. O-O
{[%clk 0:02:55.1]} 8... c5 {[%clk 0:02:41.6]} 9. Qa4 {[%clk 0:02:54.8]} 9... Qc7
{[%clk 0:02:28.3]} 10. Rb1 {[%clk 0:02:53]} 10... Nd7 {[%clk 0:02:00.4]} 11. d3
{[%clk 0:02:51.8]} 11... a6 {[%clk 0:01:44.3]} 12. Qh4 {[%clk 0:02:50.7]} 12...
h5 {[%clk 0:01:28.3]} 13. Qxe7 {[%clk 0:02:44.3]} 13... Bxc3 {[%clk 0:01:19.5]}
14. Bf4 {[%clk 0:02:36.9]} 14... Qd8 {[%clk 0:01:06.3]} 15. Qe3 {[%clk
0:02:36.1]} 15... Re8 {[%clk 0:01:04.2]} 16. Qc1 {[%clk 0:02:35.9]} 16... Bf6
{[%clk 0:01:01.8]} 17. e4 {[%clk 0:02:27.1]} 17... Ra7 {[%clk 0:00:59.2]} 18.
Re1 {[%clk 0:02:09.7]} 18... b6 {[%clk 0:00:57.6]} 19. e5 {[%clk 0:02:09.1]}
19... Bg7 {[%clk 0:00:56.2]} 20. d4 {[%clk 0:01:49.7]} 20... cxd4 {[%clk
0:00:49.9]} 21. Nxd4 {[%clk 0:01:50.1]} 21... Bb7 {[%clk 0:00:44.3]} 22. Bxb7
{[%clk 0:01:24.6]} 22... Rxb7 {[%clk 0:00:44.2]} 23. Nc6 {[%clk 0:01:24]} 23...
Qa8 {[%clk 0:00:37.7]} 24. Qe3 {[%clk 0:01:10]} 24... Nc5 {[%clk 0:00:34.8]} 25.
Rbd1 {[%clk 0:01:07.3]} 25... Rc7 {[%clk 0:00:31.5]} 26. Nd4 {[%clk 0:00:55.9]}
26... Rce7 {[%clk 0:00:29.7]} 27. Bh6 {[%clk 0:00:35.6]} 27... Rxe5 {[%clk
0:00:26.3]} 28. Qd2 {[%clk 0:00:33.3]} 28... Rxe1+ {[%clk 0:00:25.4]} 29. Rxe1
{[%clk 0:00:32.4]} 29... Rxe1+ {[%clk 0:00:25.6]} 30. Qxe1 {[%clk 0:00:32.7]}
30... Bxh6 {[%clk 0:00:26.3]} 31. f3 {[%clk 0:00:26.3]} 31... Bg7 {[%clk
0:00:26.4]} 32. Nc2 {[%clk 0:00:24.5]} 32... Qd8 {[%clk 0:00:25.7]} 33. Kf2
{[%clk 0:00:23.3]} 33... Nd3+ {[%clk 0:00:25.9]} 0-1

[Event "*** Titled Tuesday Blitz"]
[Site "Chess.com"]
[Date "2020.11.24"]
[Round "5"]
[White "CraiggoryC"]
[Black "lucachess49"]
[Result "1-0"]
[WhiteElo "2153"]
[BlackElo "2334"]
[TimeControl "180+1"]
[EndTime "11:11:27 PST"]
[Termination "CraiggoryC won by resignation"]

1. e4 {[%clk 0:03:00.4]} 1... e5 {[%clk 0:02:57.5]} 2. Nf3 {[%clk 0:03:00.3]}
2... Nc6 {[%clk 0:02:56.7]} 3. Bb5 {[%clk 0:03:00.8]} 3... a6 {[%clk 0:02:55]}
4. Ba4 {[%clk 0:03:00.9]} 4... Nf6 {[%clk 0:02:53.2]} 5. d3 {[%clk 0:03:01.4]}
5... d6 {[%clk 0:02:50.7]} 6. O-O {[%clk 0:03:00.6]} 6... Be7 {[%clk 0:02:41.3]}
7. a3 {[%clk 0:02:56.2]} 7... O-O {[%clk 0:02:36.9]} 8. h3 {[%clk 0:02:48.7]}
8... Na5 {[%clk 0:02:20.2]} 9. c3 {[%clk 0:02:39.8]} 9... b5 {[%clk 0:02:17.3]}
10. Bc2 {[%clk 0:02:38.7]} 10... c5 {[%clk 0:02:17.9]} 11. b4 {[%clk 0:02:32.6]}
11... Nc6 {[%clk 0:02:17.2]} 12. Nbd2 {[%clk 0:02:27.6]} 12... Bb7 {[%clk
0:02:08.9]} 13. Re1 {[%clk 0:02:27.5]} 13... Rc8 {[%clk 0:02:02.6]} 14. Nf1
{[%clk 0:02:25]} 14... Re8 {[%clk 0:02:00.7]} 15. Ne3 {[%clk 0:02:21.1]} 15...
h6 {[%clk 0:01:59.4]} 16. Nf5 {[%clk 0:02:06.7]} 16... Bf8 {[%clk 0:01:58.6]}
17. Nh2 {[%clk 0:02:06.6]} 17... Ne7 {[%clk 0:01:43.6]} 18. Ng4 {[%clk 0:01:53]}
18... Nxf5 {[%clk 0:01:41.8]} 19. exf5 {[%clk 0:01:48.7]} 19... Nxg4 {[%clk
0:01:41.3]} 20. hxg4 {[%clk 0:01:32.6]} 20... Be7 {[%clk 0:01:39.7]} 21. bxc5
{[%clk 0:01:19.9]} 21... Rxc5 {[%clk 0:01:38]} 22. d4 {[%clk 0:01:06.5]} 22...
Rxc3 {[%clk 0:01:17.6]} 23. Bb2 {[%clk 0:00:53.6]} 23... Rc8 {[%clk 0:01:15.2]}
24. dxe5 {[%clk 0:00:52]} 24... dxe5 {[%clk 0:01:12.9]} 25. Rxe5 {[%clk
0:00:34.4]} 25... Qxd1+ {[%clk 0:00:24.5]} 26. Bxd1 {[%clk 0:00:34.4]} 26... Bf6
{[%clk 0:00:22.7]} 27. Rxe8+ {[%clk 0:00:33.9]} 27... Rxe8 {[%clk 0:00:23.6]}
28. Bxf6 {[%clk 0:00:34]} 28... Re1+ {[%clk 0:00:24.2]} 29. Kh2 {[%clk
0:00:30.1]} 29... gxf6 {[%clk 0:00:25.1]} 30. Rc1 {[%clk 0:00:22.6]} 30... Kg7
{[%clk 0:00:19.6]} 31. Rc7 {[%clk 0:00:20.6]} 31... Bxg2 {[%clk 0:00:17.4]} 32.
Bb3 {[%clk 0:00:18.2]} 32... Rd1 {[%clk 0:00:18.3]} 33. Bxd1 {[%clk 0:00:17.1]}
1-0

[Event "*** Titled Tuesday Blitz"]
[Site "Chess.com"]
[Date "2020.11.24"]
[Round "5"]
[White "sergeikim"]
[Black "rasmussvane"]
[Result "0-1"]
[WhiteElo "2535"]
[BlackElo "2883"]
[TimeControl "180+1"]
[EndTime "11:11:29 PST"]
[Termination "rasmussvane won on time"]

1. d4 {[%clk 0:03:00.9]} 1... d5 {[%clk 0:02:59]} 2. c4 {[%clk 0:03:00.7]} 2...
e6 {[%clk 0:02:59.3]} 3. Nc3 {[%clk 0:03:00.4]} 3... a6 {[%clk 0:02:58.2]} 4.
cxd5 {[%clk 0:02:59.2]} 4... exd5 {[%clk 0:02:59.1]} 5. Nf3 {[%clk 0:02:59.3]}
5... Nf6 {[%clk 0:02:59.3]} 6. Bg5 {[%clk 0:02:57.3]} 6... Be6 {[%clk
0:02:58.1]} 7. e3 {[%clk 0:02:57.3]} 7... Nbd7 {[%clk 0:02:58.4]} 8. Bd3 {[%clk
0:02:56.9]} 8... Bd6 {[%clk 0:02:58.8]} 9. Qc2 {[%clk 0:02:56.5]} 9... c6 {[%clk
0:02:59.1]} 10. O-O {[%clk 0:02:54]} 10... Qc7 {[%clk 0:02:59.1]} 11. Rfe1
{[%clk 0:02:43.2]} 11... O-O {[%clk 0:02:55.5]} 12. Rac1 {[%clk 0:02:29.8]}
12... h6 {[%clk 0:02:48.7]} 13. Bh4 {[%clk 0:02:28]} 13... Bg4 {[%clk
0:02:47.7]} 14. Bg3 {[%clk 0:02:16.1]} 14... Rfe8 {[%clk 0:02:47.9]} 15. Nh4
{[%clk 0:02:06.2]} 15... Bxg3 {[%clk 0:02:43.8]} 16. hxg3 {[%clk 0:02:05.3]}
16... Be6 {[%clk 0:02:44.4]} 17. Nf5 {[%clk 0:01:59.3]} 17... Bxf5 {[%clk
0:02:39.6]} 18. Bxf5 {[%clk 0:01:58.1]} 18... Re7 {[%clk 0:02:40.2]} 19. Bxd7
{[%clk 0:01:50.2]} 19... Qxd7 {[%clk 0:02:38.7]} 20. b4 {[%clk 0:01:47.7]} 20...
Ne8 {[%clk 0:02:34.9]} 21. Na4 {[%clk 0:01:44.7]} 21... Rd8 {[%clk 0:02:31.9]}
22. Nc5 {[%clk 0:01:42]} 22... Qg4 {[%clk 0:02:28]} 23. Nd3 {[%clk 0:01:27]}
23... Nd6 {[%clk 0:02:25.8]} 24. Qc5 {[%clk 0:01:25.3]} 24... f6 {[%clk
0:02:20.7]} 25. Nf4 {[%clk 0:01:19.7]} 25... Qd7 {[%clk 0:02:20.5]} 26. Ng6
{[%clk 0:01:00.7]} 26... Re6 {[%clk 0:02:12.9]} 27. Nf4 {[%clk 0:00:52.8]} 27...
Re4 {[%clk 0:02:11.8]} 28. a4 {[%clk 0:00:40.3]} 28... g5 {[%clk 0:02:11]} 29.
Nh5 {[%clk 0:00:33.5]} 29... Qf7 {[%clk 0:01:53.1]} 30. f3 {[%clk 0:00:26.8]}
30... Qxh5 {[%clk 0:01:43.1]} 31. fxe4 {[%clk 0:00:26.5]} 31... Nxe4 {[%clk
0:01:44]} 32. Qe7 {[%clk 0:00:25.4]} 32... Re8 {[%clk 0:01:44]} 33. Qd7 {[%clk
0:00:24.5]} 33... Nxg3 {[%clk 0:01:41.5]} 34. Kf2 {[%clk 0:00:17.5]} 34... Ne4+
{[%clk 0:01:39.8]} 35. Kg1 {[%clk 0:00:17.1]} 35... Kf8 {[%clk 0:00:59.1]} 36.
Qxb7 {[%clk 0:00:09.6]} 36... Ng3 {[%clk 0:00:59.2]} 37. Qxc6 {[%clk 0:00:07.4]}
37... Qh1+ {[%clk 0:00:58.1]} 38. Kf2 {[%clk 0:00:07.2]} 38... Ne4+ {[%clk
0:00:58.7]} 39. Kf3 {[%clk 0:00:04.3]} 39... Qh5+ {[%clk 0:00:58]} 40. g4 {[%clk
0:00:03.8]} 40... Qh3+ {[%clk 0:00:57.9]} 41. Ke2 {[%clk 0:00:02.5]} 41... Qg2+
{[%clk 0:00:58.1]} 0-1

[Event "*** Titled Tuesday Blitz"]
[Site "Chess.com"]
[Date "2020.11.24"]
[Round "5"]
[White "Bacyanide"]
[Black "kakorrhaphiophobie"]
[Result "1-0"]
[WhiteElo "2427"]
[BlackElo "2323"]
[TimeControl "180+1"]
[EndTime "11:11:31 PST"]
[Termination "Bacyanide won by resignation"]

1. d4 {[%clk 0:03:00.9]} 1... f5 {[%clk 0:02:59.7]} 2. c4 {[%clk 0:03:01]} 2...
Nf6 {[%clk 0:02:58.9]} 3. Nc3 {[%clk 0:03:01.5]} 3... d6 {[%clk 0:02:58.9]} 4.
Nf3 {[%clk 0:03:01.7]} 4... g6 {[%clk 0:02:57.8]} 5. Bg5 {[%clk 0:03:01.4]} 5...
Nbd7 {[%clk 0:02:58]} 6. Qc2 {[%clk 0:02:59.5]} 6... c6 {[%clk 0:02:57.6]} 7. e4
{[%clk 0:02:59.4]} 7... Nxe4 {[%clk 0:02:43.6]} 8. Nxe4 {[%clk 0:03:00.3]} 8...
fxe4 {[%clk 0:02:44.2]} 9. Qxe4 {[%clk 0:02:59.5]} 9... Qa5+ {[%clk 0:02:39]}
10. Bd2 {[%clk 0:02:57.5]} 10... Nf6 {[%clk 0:02:29.9]} 11. Qxg6+ {[%clk
0:02:53.6]} 11... hxg6 {[%clk 0:02:29.4]} 12. Bxa5 {[%clk 0:02:54.5]} 12... Bg7
{[%clk 0:02:13.8]} 13. Bd3 {[%clk 0:02:53.6]} 13... Bf5 {[%clk 0:02:11.2]} 14.
Ke2 {[%clk 0:02:45.2]} 14... Ng4 {[%clk 0:02:04.7]} 15. Bxf5 {[%clk 0:02:39.2]}
15... gxf5 {[%clk 0:02:05.6]} 16. Bc3 {[%clk 0:02:35.2]} 16... Kd7 {[%clk
0:01:40.5]} 17. h3 {[%clk 0:02:30.6]} 17... Nf6 {[%clk 0:01:40.1]} 18. Nd2
{[%clk 0:02:25.8]} 18... Nh5 {[%clk 0:01:36.7]} 19. g3 {[%clk 0:02:22.4]} 19...
Rhf8 {[%clk 0:01:32.2]} 20. Rag1 {[%clk 0:02:20]} 20... Rae8 {[%clk 0:01:32]}
21. g4 {[%clk 0:02:11.9]} 21... Nf4+ {[%clk 0:01:28]} 22. Ke3 {[%clk 0:02:11.3]}
22... Ne6 {[%clk 0:01:12.1]} 23. d5 {[%clk 0:01:46.4]} 23... Bh6+ {[%clk
0:00:37.5]} 24. Ke2 {[%clk 0:01:41.9]} 24... Nf4+ {[%clk 0:00:36.5]} 25. Kd1
{[%clk 0:01:41.3]} 25... cxd5 {[%clk 0:00:36.3]} 26. g5 {[%clk 0:01:40.6]} 26...
d4 {[%clk 0:00:26.4]} 27. Bxd4 {[%clk 0:01:36.2]} 27... e5 {[%clk 0:00:26.9]}
28. gxh6 {[%clk 0:01:35.5]} 28... exd4 {[%clk 0:00:27]} 29. Rg7+ {[%clk
0:01:34.5]} 29... Re7 {[%clk 0:00:20.8]} 30. Nf3 {[%clk 0:01:33.5]} 30... Ne6
{[%clk 0:00:20.4]} 31. Rxe7+ {[%clk 0:01:27.5]} 31... Kxe7 {[%clk 0:00:21.3]}
32. Rg1 {[%clk 0:01:27.5]} 32... Rh8 {[%clk 0:00:21.9]} 33. Kd2 {[%clk
0:01:21.9]} 33... Rxh6 {[%clk 0:00:21.2]} 34. h4 {[%clk 0:01:22.4]} 34... Kf6
{[%clk 0:00:18.5]} 35. Kd3 {[%clk 0:01:22.6]} 35... Rh8 {[%clk 0:00:19.2]} 36.
Rh1 {[%clk 0:01:21.3]} 36... Rh5 {[%clk 0:00:18.8]} 37. Nxd4 {[%clk 0:01:21.3]}
37... Nxd4 {[%clk 0:00:18.6]} 38. Kxd4 {[%clk 0:01:22.2]} 38... Ke6 {[%clk
0:00:18.6]} 39. f4 {[%clk 0:01:21.6]} 39... b6 {[%clk 0:00:18.3]} 40. b4 {[%clk
0:01:21.4]} 40... a6 {[%clk 0:00:18.7]} 41. a4 {[%clk 0:01:21.3]} 41... Kd7
{[%clk 0:00:18.5]} 42. Kd5 {[%clk 0:01:20.8]} 42... a5 {[%clk 0:00:19.1]} 43. b5
{[%clk 0:01:19.5]} 43... Kc7 {[%clk 0:00:18.5]} 44. Ke6 {[%clk 0:01:19]} 44...
Rh6+ {[%clk 0:00:10.8]} 45. Kxf5 {[%clk 0:01:18.9]} 45... d5 {[%clk 0:00:11.7]}
46. cxd5 {[%clk 0:01:17.8]} 46... Kd6 {[%clk 0:00:12.3]} 47. Ke4 {[%clk
0:01:18.4]} 47... Kc5 {[%clk 0:00:12.4]} 48. Ke5 {[%clk 0:01:18.2]} 48... Rh5+
{[%clk 0:00:11.5]} 49. f5 {[%clk 0:01:17.6]} 49... Kb4 {[%clk 0:00:12.1]} 50. d6
{[%clk 0:01:17.8]} 50... Kxa4 {[%clk 0:00:12.4]} 51. d7 {[%clk 0:01:18.3]} 51...
Rh8 {[%clk 0:00:12.7]} 52. Rc1 {[%clk 0:01:16.5]} 52... Rd8 {[%clk 0:00:11.2]}
53. Ke6 {[%clk 0:01:16.2]} 53... Kxb5 {[%clk 0:00:11.4]} 54. Rc8 {[%clk
0:01:16.6]} 54... Rxd7 {[%clk 0:00:11.2]} 55. Kxd7 {[%clk 0:01:16.9]} 55... a4
{[%clk 0:00:12.1]} 56. f6 {[%clk 0:01:17.4]} 1-0

[Event "*** Titled Tuesday Blitz"]
[Site "Chess.com"]
[Date "2020.11.24"]
[Round "5"]
[White "Grandmaster1369"]
[Black "CookiesAndIceCream"]
[Result "1-0"]
[WhiteElo "2197"]
[BlackElo "2419"]
[TimeControl "180+1"]
[EndTime "11:11:31 PST"]
[Termination "Grandmaster1369 won by checkmate"]

1. e4 {[%clk 0:03:00.9]} 1... e6 {[%clk 0:02:47.4]} 2. d4 {[%clk 0:02:59.7]}
2... d5 {[%clk 0:02:46.2]} 3. Nc3 {[%clk 0:02:59]} 3... Nf6 {[%clk 0:02:45.3]}
4. e5 {[%clk 0:02:58.4]} 4... Nfd7 {[%clk 0:02:45.3]} 5. f4 {[%clk 0:02:58.3]}
5... c5 {[%clk 0:02:45.5]} 6. Nf3 {[%clk 0:02:58.3]} 6... Be7 {[%clk 0:02:45.1]}
7. Be3 {[%clk 0:02:55]} 7... O-O {[%clk 0:02:45.2]} 8. Qd2 {[%clk 0:02:51.6]}
8... b6 {[%clk 0:02:45.2]} 9. f5 {[%clk 0:02:35.3]} 9... Kh8 {[%clk 0:02:20.5]}
10. h4 {[%clk 0:02:08.6]} 10... Nc6 {[%clk 0:02:16.9]} 11. Bb5 {[%clk
0:01:37.7]} 11... Nxd4 {[%clk 0:02:06.2]} 12. Bxd4 {[%clk 0:01:28]} 12... cxd4
{[%clk 0:02:05.3]} 13. Qxd4 {[%clk 0:01:18.5]} 13... Nc5 {[%clk 0:01:34.2]} 14.
O-O-O {[%clk 0:01:06.2]} 14... a6 {[%clk 0:01:24]} 15. Bc6 {[%clk 0:00:54.6]}
15... Rb8 {[%clk 0:01:19.2]} 16. Ng5 {[%clk 0:00:53.5]} 16... Qc7 {[%clk
0:01:11.8]} 17. Bxd5 {[%clk 0:00:45.4]} 17... exd5 {[%clk 0:01:01.4]} 18. Nxd5
{[%clk 0:00:44.4]} 18... Qb7 {[%clk 0:01:01.8]} 19. f6 {[%clk 0:00:42.3]} 19...
Bf5 {[%clk 0:00:28.4]} 20. fxe7 {[%clk 0:00:38.7]} 20... Rfe8 {[%clk 0:00:27.7]}
21. Nxf7+ {[%clk 0:00:38.5]} 21... Kg8 {[%clk 0:00:27.9]} 22. Nd6 {[%clk
0:00:39.1]} 22... Qd7 {[%clk 0:00:22.3]} 23. Qf4 {[%clk 0:00:36.3]} 23... Be6
{[%clk 0:00:17.3]} 24. Nf6+ {[%clk 0:00:32]} 24... gxf6 {[%clk 0:00:15]} 25.
exf6 {[%clk 0:00:32.9]} 25... Kh8 {[%clk 0:00:08.2]} 26. f7 {[%clk 0:00:31.9]}
26... Bxf7 {[%clk 0:00:03.6]} 27. Qf6+ {[%clk 0:00:32.1]} 27... Kg8 {[%clk
0:00:03.4]} 28. Qxf7+ {[%clk 0:00:32.5]} 28... Kh8 {[%clk 0:00:03.9]} 29. Qf6+
{[%clk 0:00:27.5]} 29... Kg8 {[%clk 0:00:03.8]} 30. Nf7 {[%clk 0:00:27.5]} 30...
Qxe7 {[%clk 0:00:02.8]} 31. Nh6# {[%clk 0:00:27.1]} 1-0